fUST/lending_fUST_20250806
["ID","MTS","AMOUNT","RATE_DAILY","PERIOD"]
[377493560,1754428263852,-536.52,0.00030136,2]
[377493561,1754428263862,-2516.58,0.00030136,2]
[377493562,1754428263873,-480.2,0.00030136,2]
[377493563,1754428263883,-460.0,0.00030136,2]
[377493564,1754428263893,-1268.37,0.00030136,2]
[377493565,1754428263903,-1033.05,0.00030136,2]
[377493566,1754428263913,-460.0,0.00030136,2]
[377493567,1754428263923,-568.27527087,0.00030136,2]
[377493568,1754428263933,-203.49,0.00030151,15]
[377493569,1754428263944,-198.7,0.00030158,15]
[377493570,1754428263955,-162.11134969,0.00030161,2]
[377493571,1754428263965,-1000.0,0.000302,6]
[377493572,1754428263976,-160.0,0.000302,7]
[377493573,1754428263987,-160.0,0.000302,7]
[377493574,1754428263997,-231.72586818,0.000302,7]
[377493575,1754428264006,-160.0,0.000302,7]
[377493576,1754428264017,-160.0,0.000302,7]
[377493577,1754428264027,-527.3554621,0.000302,7]
[377493578,1754428264037,-203.49,0.00030251,15]
[377493579,1754428264047,-154.25,0.00030258,15]
[377493580,1754428264057,-198.7,0.00030258,15]
[377493581,1754428264067,-460.0,0.00030306,2]
[377493582,1754428264077,-203.49,0.00030351,15]
[377493583,1754428264221,-154.31,0.00030358,15]
[377493584,1754428264231,-198.7,0.00030358,15]
[377493585,1754428264241,-160.76663723,0.00030399,10]
[377493586,1754428264251,-151.0,0.000304,7]
[377493587,1754428264260,-151.0,0.000304,7]
[377493588,1754428264270,-151.0,0.000304,7]
[377493589,1754428264279,-151.0,0.000304,7]
[377493590,1754428264289,-151.0,0.000304,7]
[377493591,1754428264299,-151.0,0.000304,7]
[377493592,1754428264309,-151.0,0.000304,7]
[377493593,1754428264319,-629443.26,0.000304,4]
[377493594,1754428264329,-858278.66,0.000304,4]
[377493595,1754428264338,-191262.63,0.000304,4]
[377493596,1754428264348,-1080.71,0.000304,2]
[377493597,1754428264357,-151.0,0.000304,7]
[377493598,1754428264367,-153.440057,0.000304,7]
[377493599,1754428264376,-151.0,0.000304,7]
[377493600,1754428264386,-151.0,0.000304,7]
[377493601,1754428264395,-152.836122,0.000304,7]
[377493602,1754428264404,-1712.627473,0.000304,7]
[377493603,1754428264414,-151.653682,0.000304,7]
[377493604,1754428264424,-151.0,0.000304,7]
[377493605,1754428264433,-151.0,0.000304,7]
[377493606,1754428264443,-497.333361,0.000304,7]
[377493607,1754428264453,-497.333361,0.000304,7]
[377493608,1754428264463,-497.333361,0.000304,7]
[377493609,1754428264472,-151.0,0.000304,7]
[377493610,1754428264482,-497.333361,0.000304,7]
[377493611,1754428264492,-154.514533,0.000304,7]
[377493612,1754428264501,-151.0,0.000304,7]
[377493613,1754428264510,-151.0,0.000304,7]
[377493614,1754428264520,-151.0,0.000304,7]
[377493615,1754428264529,-151.0,0.000304,7]
[377493616,1754428264539,-151.0,0.000304,7]
[377493617,1754428264548,-151.0,0.000304,7]
[377493618,1754428264557,-151.0,0.000304,7]
[377493619,1754428264566,-151.0,0.000304,7]
[377493620,1754428264575,-151.0,0.000304,7]
[377493621,1754428264585,-151.0,0.000304,7]
[377493622,1754428264594,-151.0,0.000304,7]
[377493623,1754428264604,-151.0,0.000304,7]
[377493624,1754428264613,-151.0,0.000304,7]
[377493625,1754428264623,-151.0,0.000304,7]
[377493626,1754428264633,-151.0,0.000304,7]
[377493627,1754428264642,-151.0,0.000304,7]
[377493628,1754428264651,-207.146422,0.000304,7]
[377493629,1754428264661,-151.0,0.000304,7]
[377493630,1754428264670,-151.0,0.000304,7]
[377493631,1754428264679,-151.0,0.000304,7]
[377493632,1754428264689,-151.0,0.000304,7]
[377493633,1754428264699,-482.917969,0.000304,7]
[377493634,1754428264708,-482.917969,0.000304,7]
[377493635,1754428264719,-482.917969,0.000304,7]
[377493636,1754428264728,-482.917969,0.000304,7]
[377493637,1754428264738,-151.0,0.000304,7]
[377493638,1754428264748,-151.0,0.000304,7]
[377493639,1754428264758,-176.555931,0.000304,7]
[377493640,1754428264768,-176.555931,0.000304,7]
[377493641,1754428264777,-176.555931,0.000304,7]
[377493642,1754428264786,-176.555931,0.000304,7]
[377493643,1754428264796,-151.0,0.000304,7]
[377493644,1754428264807,-156.226848,0.000304,7]
[377493645,1754428264817,-151.0,0.000304,7]
[377493646,1754428264826,-151.0,0.000304,7]
[377493647,1754428264835,-151.0,0.000304,7]
[377493648,1754428264845,-151.0,0.000304,7]
[377493649,1754428264854,-151.0,0.000304,7]
[377493650,1754428264863,-151.0,0.000304,7]
[377493651,1754428264873,-151.0,0.000304,7]
[377493652,1754428264883,-151.0,0.000304,7]
[377493653,1754428264895,-151.0,0.000304,7]
[377493654,1754428264906,-151.0,0.000304,7]
[377493655,1754428264917,-205.507265,0.000304,7]
[377493656,1754428264926,-282.844152,0.000304,7]
[377493657,1754428264937,-282.844152,0.000304,7]
[377493658,1754428264948,-151.0,0.000304,7]
[377493659,1754428264958,-151.0,0.000304,7]
[377493660,1754428264968,-152.846565,0.000304,7]
[377493661,1754428264977,-282.844152,0.000304,7]
[377493662,1754428264987,-282.844152,0.000304,7]
[377493663,1754428264997,-151.0,0.000304,7]
[377493664,1754428265007,-151.0,0.000304,7]
[377493665,1754428265016,-151.0,0.000304,7]
[377493666,1754428265026,-151.0,0.000304,7]
[377493667,1754428265035,-151.0,0.000304,7]
[377493668,1754428265045,-151.0,0.000304,7]
[377493669,1754428265054,-153.628359,0.000304,7]
[377493670,1754428265063,-868.098905,0.000304,7]
[377493671,1754428265073,-868.098905,0.000304,7]
[377493672,1754428265082,-868.098905,0.000304,7]
[377493673,1754428265091,-868.098905,0.000304,7]
[377493674,1754428265100,-151.0,0.000304,7]
[377493675,1754428265110,-151.0,0.000304,7]
[377493676,1754428265119,-226.999932,0.000304,7]
[377493677,1754428265132,-226.999932,0.000304,7]
[377493678,1754428265141,-346.928294,0.000304,7]
[377493679,1754428265151,-226.999932,0.000304,7]
[377493680,1754428265160,-346.928294,0.000304,7]
[377493681,1754428265169,-346.928294,0.000304,7]
[377493682,1754428265178,-346.928294,0.000304,7]
[377493683,1754428265188,-226.999932,0.000304,7]
[377493684,1754428265197,-226.999932,0.000304,7]
[377493685,1754428265206,-433.916028,0.000304,7]
[377493686,1754428265215,-226.999932,0.000304,7]
[377493687,1754428265225,-433.916028,0.000304,7]
[377493688,1754428265234,-151.0,0.000304,7]
[377493689,1754428265244,-151.0,0.000304,7]
[377493690,1754428265253,-151.0,0.000304,7]
[377493691,1754428265262,-151.0,0.000304,7]
[377493692,1754428265271,-151.0,0.000304,7]
[377493693,1754428265281,-433.916028,0.000304,7]
[377493694,1754428265290,-433.916028,0.000304,7]
[377493695,1754428265300,-151.0,0.000304,7]
[377493696,1754428265309,-231.72586818,0.000304,7]
[377493697,1754428265318,-153.885592,0.000304,7]
[377493698,1754428265328,-307.095709,0.000304,7]
[377493699,1754428265338,-307.095709,0.000304,7]
[377493700,1754428265347,-307.095709,0.000304,7]
[377493701,1754428265357,-307.095709,0.000304,7]
[377493702,1754428265367,-527.3554621,0.000304,7]
[377493703,1754428265377,-374.555493,0.000304,7]
[377493704,1754428265386,-374.555493,0.000304,7]
[377493705,1754428265395,-374.555493,0.000304,7]
[377493706,1754428265404,-374.555493,0.000304,7]
[377493707,1754428265414,-175.0,0.000304,7]
[377493708,1754428265423,-175.0,0.000304,7]
[377493709,1754428265432,-175.0,0.000304,7]
[377493710,1754428265442,-175.0,0.000304,7]
[377493711,1754428265451,-216.4206905,0.000304,7]
[377493712,1754428265461,-151.0,0.000304,7]
[377493713,1754428265471,-151.0,0.000304,7]
[377493714,1754428265481,-304.206725,0.000304,7]
[377493715,1754428265490,-304.206725,0.000304,7]
[377493716,1754428265499,-304.206725,0.000304,7]
[377493717,1754428265509,-304.206725,0.000304,7]
[377493718,1754428265518,-160.0,0.000304,7]
[377493719,1754428265528,-274.87708,0.000304,7]
[377493720,1754428265537,-151.0,0.000304,7]
[377493721,1754428265546,-151.0,0.000304,7]
[377493722,1754428265556,-312.16666667,0.000304,7]
[377493723,1754428265565,-151.0,0.000304,7]
[377493724,1754428265575,-151.0,0.000304,7]
[377493725,1754428265584,-151.0,0.000304,7]
[377493726,1754428265593,-151.0,0.000304,7]
[377493727,1754428265603,-1216.08,0.0003041,2]
[377493728,1754428265613,-44502.19,0.0003041,2]
[377493729,1754428265624,-460.0,0.0003041,2]
[377493730,1754428265633,-460.0,0.0003041,2]
[377493731,1754428265643,-460.0,0.0003041,2]
[377493732,1754428265652,-986.95,0.0003041,2]
[377493733,1754428265662,-197.86072933,0.0003041,2]
[377493734,1754428265673,-1405.78,0.0003041,2]
[377493735,1754428265683,-1646.57,0.0003041,2]
[377493736,1754428265692,-247.61355586,0.0003041,2]
[377493737,1754428265702,-1004.39,0.0003041,2]
[377493738,1754428265711,-754.61,0.0003041,2]
[377493739,1754428265720,-1427.57,0.0003041,2]
[377493740,1754428265729,-843.04,0.0003041,2]
[377493741,1754428265739,-500.0,0.0003041,2]
[377493742,1754428265748,-479.29,0.0003041,2]
[377493743,1754428265757,-460.0,0.0003041,2]
[377493744,1754428265767,-460.0,0.0003041,2]
[377493745,1754428265776,-166.9,0.0003041,2]
[377493746,1754428265785,-460.0,0.0003041,2]
[377493747,1754428265796,-1539.97,0.0003041,2]
[377493748,1754428265805,-460.0,0.0003041,2]
[377493749,1754428265814,-460.0,0.0003041,2]
[377493750,1754428265825,-872.01,0.0003041,2]
[377493751,1754428265834,-744.25,0.0003041,2]
[377493752,1754428265844,-460.0,0.0003041,2]
[377493753,1754428265853,-810.87,0.0003041,2]
[377493754,1754428265862,-460.0,0.0003041,2]
[377493755,1754428265872,-1310.25,0.0003041,2]
[377493756,1754428265881,-535.91,0.0003041,2]
[377493757,1754428265891,-460.0,0.0003041,2]
[377493758,1754428265900,-685.4,0.0003041,2]
[377493759,1754428265910,-939.56,0.0003041,2]
[377493760,1754428265919,-1321.46,0.0003041,2]
[377493761,1754428265928,-460.0,0.0003041,2]
[377493762,1754428265938,-1079.29,0.0003041,2]
[377493763,1754428265948,-460.0,0.0003041,2]
[377493764,1754428265958,-1285.82,0.0003041,2]
[377493765,1754428265967,-1068.35,0.0003041,2]
[377493766,1754428265977,-1932.82,0.0003041,2]
[377493767,1754428265987,-760.29,0.0003041,2]
[377493768,1754428265996,-460.0,0.0003041,2]
[377493769,1754428266005,-876.2,0.0003041,2]
[377493770,1754428266014,-2267.47,0.0003041,2]
[377493771,1754428266024,-1306.21,0.0003041,2]
[377493772,1754428266033,-716.27,0.0003041,2]
[377493773,1754428266042,-5812.43,0.0003041,2]
[377493774,1754428266052,-460.0,0.0003041,2]
[377493775,1754428266062,-771.54,0.0003041,2]
[377493776,1754428266072,-4606.77,0.0003041,2]
[377493777,1754428266082,-460.0,0.0003041,2]
[377493778,1754428266092,-2549.55,0.0003041,2]
[377493779,1754428266101,-460.0,0.0003041,2]
[377493780,1754428266112,-460.0,0.0003041,2]
[377493781,1754428266122,-5338.37,0.0003041,2]
[377493782,1754428266139,-460.0,0.0003041,2]
[377493783,1754428266148,-573.68,0.0003041,2]
[377493784,1754428266157,-688.54,0.0003041,2]
[377493785,1754428266167,-460.0,0.0003041,2]
[377493786,1754428266177,-407.19740476,0.0003041,2]
[377493787,1754428266186,-460.0,0.0003041,2]
[377493788,1754428266196,-617.76,0.0003041,2]
[377493789,1754428266210,-576.94,0.0003041,2]
[377493790,1754428266220,-1452.1,0.0003041,2]
[377493791,1754428266230,-1657.71,0.0003041,2]
[377493792,1754428266239,-470.47,0.0003041,2]
[377493793,1754428266249,-848.87,0.0003041,2]
[377493794,1754428266259,-519.96,0.0003041,2]
[377493795,1754428266268,-1262.74,0.0003041,2]
[377493796,1754428266278,-460.0,0.0003041,2]
[377493797,1754428266287,-913.31,0.0003041,2]
[377493798,1754428266296,-1357.67,0.0003041,2]
[377493799,1754428266306,-460.0,0.0003041,2]
[377493800,1754428266315,-460.0,0.0003041,2]
[377493801,1754428266324,-460.0,0.0003041,2]
[377493802,1754428266333,-865.82,0.0003041,2]
[377493803,1754428266342,-460.0,0.0003041,2]
[377493804,1754428266353,-1184.43,0.0003041,2]
[377493805,1754428266362,-753.72,0.0003041,2]
[377493806,1754428266372,-536.52,0.0003041,2]
[377493807,1754428266381,-2516.58,0.0003041,2]
[377493808,1754428266390,-480.2,0.0003041,2]
[377493809,1754428266399,-460.0,0.0003041,2]
[377493810,1754428266408,-1268.37,0.0003041,2]
[377493811,1754428266418,-1033.05,0.0003041,2]
[377493812,1754428266428,-516.52770387,0.0003041,2]
[377493813,1754428266440,-203.49,0.00030451,15]
[377493814,1754428266449,-198.7,0.00030458,15]
[377493815,1754428266458,-434.407454,0.00030481,2]
[377493816,1754428266467,-151.0,0.00030533,2]
[377493817,1754428266477,-14035.52079701,0.00030533,2]
[377493818,1754428266487,-203.49,0.00030551,15]
[377493819,1754428266497,-198.7,0.00030558,15]
[377493820,1754428266506,-160.0,0.00030585,7]
[377493821,1754428266515,-160.0,0.00030585,7]
[377493822,1754428266525,-172.0,0.00030585,7]
[377493823,1754428266534,-172.0,0.00030585,7]
[377493824,1754428266543,-152.0,0.00030585,7]
[377493825,1754428266553,-152.0,0.00030585,7]
[377493826,1754428266569,-152.0,0.00030585,7]
[377493827,1754428266580,-152.0,0.00030585,7]
[377493828,1754428266591,-152.0,0.00030585,7]
[377493829,1754428266599,-161.7998668,0.00030585,7]
[377493830,1754428266608,-152.0,0.00030585,7]
[377493831,1754428266617,-203.49,0.00030651,15]
[377493832,1754428266626,-198.7,0.00030658,15]
[377493833,1754428266635,-1216.08,0.00030684,2]
[377493834,1754428266643,-44502.19,0.00030684,2]
[377493835,1754428266652,-460.0,0.00030684,2]
[377493836,1754428266661,-460.0,0.00030684,2]
[377493837,1754428266670,-460.0,0.00030684,2]
[377493838,1754428266679,-986.95,0.00030684,2]
[377493839,1754428266688,-1405.78,0.00030684,2]
[377493840,1754428266696,-1646.57,0.00030684,2]
[377493841,1754428266705,-1004.39,0.00030684,2]
[377493842,1754428266715,-754.61,0.00030684,2]
[377493843,1754428266723,-1427.57,0.00030684,2]
[377493844,1754428266733,-843.04,0.00030684,2]
[377493845,1754428266742,-500.0,0.00030684,2]
[377493846,1754428266752,-479.29,0.00030684,2]
[377493847,1754428266762,-460.0,0.00030684,2]
[377493848,1754428266771,-460.0,0.00030684,2]
[377493849,1754428266781,-415.83535541,0.00030684,2]
[377493850,1754428266791,-1539.97,0.00030684,2]
[377493851,1754428266800,-350.8,0.00030684,2]
[377493852,1754428266811,-460.0,0.00030684,2]
[377493853,1754428266820,-872.01,0.00030684,2]
[377493854,1754428266829,-744.25,0.00030684,2]
[377493855,1754428266843,-460.0,0.00030684,2]
[377493856,1754428266852,-810.87,0.00030684,2]
[377493857,1754428266862,-460.0,0.00030684,2]
[377493858,1754428266871,-1310.25,0.00030684,2]
[377493859,1754428266880,-535.91,0.00030684,2]
[377493860,1754428266891,-460.0,0.00030684,2]
[377493861,1754428266903,-685.4,0.00030684,2]
[377493862,1754428266913,-939.56,0.00030684,2]
[377493863,1754428266922,-1321.46,0.00030684,2]
[377493864,1754428266931,-460.0,0.00030684,2]
[377493865,1754428266940,-1079.29,0.00030684,2]
[377493866,1754428266950,-460.0,0.00030684,2]
[377493867,1754428266959,-1285.82,0.00030684,2]
[377493868,1754428266968,-1068.35,0.00030684,2]
[377493869,1754428266977,-1932.82,0.00030684,2]
[377493870,1754428266991,-760.29,0.00030684,2]
[377493871,1754428267000,-460.0,0.00030684,2]
[377493872,1754428267010,-876.2,0.00030684,2]
[377493873,1754428267019,-2267.47,0.00030684,2]
[377493874,1754428267028,-1306.21,0.00030684,2]
[377493875,1754428267038,-716.27,0.00030684,2]
[377493876,1754428267047,-5812.43,0.00030684,2]
[377493877,1754428267056,-460.0,0.00030684,2]
[377493878,1754428267065,-771.54,0.00030684,2]
[377493879,1754428267076,-460.0,0.00030684,2]
[377493880,1754428267085,-4606.77,0.00030684,2]
[377493881,1754428267094,-2549.55,0.00030684,2]
[377493882,1754428267103,-472.67347861,0.00030684,2]
[377493883,1754428267113,-460.0,0.00030684,2]
[377493884,1754428267122,-5338.37,0.00030684,2]
[377493885,1754428267136,-460.0,0.00030684,2]
[377493886,1754428267146,-573.68,0.00030684,2]
[377493887,1754428267285,-688.54,0.00030684,2]
[377493888,1754428267295,-460.0,0.00030684,2]
[377493889,1754428267304,-460.0,0.00030684,2]
[377493890,1754428267313,-617.76,0.00030684,2]
[377493891,1754428267323,-576.94,0.00030684,2]
[377493892,1754428267332,-1452.1,0.00030684,2]
[377493893,1754428267343,-1657.71,0.00030684,2]
[377493894,1754428267357,-470.47,0.00030684,2]
[377493895,1754428267367,-848.87,0.00030684,2]
[377493896,1754428267376,-519.96,0.00030684,2]
[377493897,1754428267386,-1262.74,0.00030684,2]
[377493898,1754428267404,-460.0,0.00030684,2]
[377493899,1754428267414,-913.31,0.00030684,2]
[377493900,1754428267423,-1357.67,0.00030684,2]
[377493901,1754428267433,-460.0,0.00030684,2]
[377493902,1754428267442,-460.0,0.00030684,2]
[377493903,1754428267452,-460.0,0.00030684,2]
[377493904,1754428267461,-865.82,0.00030684,2]
[377493905,1754428267471,-460.0,0.00030684,2]
[377493906,1754428267480,-1184.43,0.00030684,2]
[377493907,1754428267489,-753.72,0.00030684,2]
[377493908,1754428267499,-536.52,0.00030684,2]
[377493909,1754428267509,-2516.58,0.00030684,2]
[377493910,1754428267518,-480.2,0.00030684,2]
[377493911,1754428267527,-460.0,0.00030684,2]
[377493912,1754428267536,-1268.37,0.00030684,2]
[377493913,1754428267546,-1033.05,0.00030684,2]
[377493914,1754428267556,-823.0,0.00030699,2]
[377493915,1754428267566,-1000.0,0.000307,6]
[377493916,1754428267575,-203.49,0.00030751,15]
[377493917,1754428267584,-198.7,0.00030758,15]
[377493918,1754428267594,-203.49,0.00030851,15]
[377493919,1754428267603,-560.0,0.00030854,2]
[377493920,1754428267612,-198.7,0.00030858,15]
[377493921,1754428267621,-990.0,0.00030864,7]
[377493922,1754428267630,-600.0,0.00030943,2]
[377493923,1754428267639,-171.73,0.00030943,2]
[377493924,1754428267649,-203.49,0.00030951,15]
[377493925,1754428267658,-198.7,0.00030958,15]
[377493926,1754428267667,-151.0,0.00030958,7]
[377493927,1754428267676,-151.0,0.00030958,7]
[377493928,1754428267685,-1216.08,0.00030958,2]
[377493929,1754428267695,-44502.19,0.00030958,2]
[377493930,1754428267704,-460.0,0.00030958,2]
[377493931,1754428267713,-460.0,0.00030958,2]
[377493932,1754428267722,-460.0,0.00030958,2]
[377493933,1754428267732,-986.95,0.00030958,2]
[377493934,1754428267741,-1405.78,0.00030958,2]
[377493935,1754428267751,-1646.57,0.00030958,2]
[377493936,1754428267760,-1004.39,0.00030958,2]
[377493937,1754428267769,-754.61,0.00030958,2]
[377493938,1754428267779,-1427.57,0.00030958,2]
[377493939,1754428267788,-843.04,0.00030958,2]
[377493940,1754428267798,-345.2,0.00030958,2]
[377493941,1754428267808,-479.29,0.00030958,2]
[377493942,1754428267819,-460.0,0.00030958,2]
[377493943,1754428267828,-460.0,0.00030958,2]
[377493944,1754428267837,-1539.97,0.00030958,2]
[377493945,1754428267847,-460.0,0.00030958,2]
[377493946,1754428267856,-872.01,0.00030958,2]
[377493947,1754428267865,-744.25,0.00030958,2]
[377493948,1754428267874,-156.15233829,0.00030958,2]
[377493949,1754428267884,-810.87,0.00030958,2]
[377493950,1754428267893,-578.86329754,0.00030958,2]
[377493951,1754428267903,-1310.25,0.00030958,2]
[377493952,1754428267912,-535.91,0.00030958,2]
[377493953,1754428267921,-460.0,0.00030958,2]
[377493954,1754428267930,-685.4,0.00030958,2]
[377493955,1754428267939,-939.56,0.00030958,2]
[377493956,1754428267955,-1321.46,0.00030958,2]
[377493957,1754428267971,-460.0,0.00030958,2]
[377493958,1754428267982,-1079.29,0.00030958,2]
[377493959,1754428267991,-460.0,0.00030958,2]
[377493960,1754428268000,-1285.82,0.00030958,2]
[377493961,1754428268010,-1068.35,0.00030958,2]
[377493962,1754428268019,-1932.82,0.00030958,2]
[377493963,1754428268029,-760.29,0.00030958,2]
[377493964,1754428268038,-876.2,0.00030958,2]
[377493965,1754428268048,-2267.47,0.00030958,2]
[377493966,1754428268059,-1306.21,0.00030958,2]
[377493967,1754428268069,-716.27,0.00030958,2]
[377493968,1754428268078,-2798.6688309,0.00030958,2]
[377493969,1754428268921,-460.0,0.00027397,2]
[377493970,1754428268931,-460.0,0.00027397,2]
[377493971,1754428268940,-460.0,0.00027397,2]
[377493972,1754428268949,-473.99556003,0.00027397,2]
[377493973,1754428268958,-460.0,0.00027397,2]
[377493974,1754428268966,-460.0,0.00027397,2]
[377493975,1754428268975,-460.0,0.00027397,2]
[377493976,1754428268986,-463.03840258,0.00027397,2]
[377493977,1754428268995,-460.0,0.00027397,2]
[377493978,1754428269004,-460.0,0.00027397,2]
[377493979,1754428269013,-460.0,0.00027671,2]
[377493980,1754428269022,-528.97284523,0.00027671,2]
[377493981,1754428269031,-460.0,0.00027671,2]
[377493982,1754428269040,-460.0,0.00027671,2]
[377493983,1754428269048,-460.0,0.00027671,2]
[377493984,1754428269057,-460.0,0.00027671,2]
[377493985,1754428269066,-300.0,0.00027795,2]
[377493986,1754428269075,-460.0,0.00027945,2]
[377493987,1754428269084,-460.0,0.00027945,2]
[377493988,1754428269093,-460.0,0.00027945,2]
[377493989,1754428269101,-460.0,0.00027945,2]
[377493990,1754428269110,-460.0,0.00028219,2]
[377493991,1754428269119,-460.0,0.00028219,2]
[377493992,1754428269131,-460.0,0.00028219,2]
[377493993,1754428269140,-460.0,0.00028493,2]
[377493994,1754428269149,-566.08,0.00028493,2]
[377493995,1754428269158,-460.0,0.00028493,2]
[377493996,1754428269167,-460.0,0.00028767,2]
[377493997,1754428269176,-460.0,0.00028767,2]
[377493998,1754428269185,-460.0,0.00029041,2]
[377493999,1754428269194,-460.0,0.00029041,2]
[377494000,1754428269203,-460.0,0.00029315,2]
[377494001,1754428269212,-460.0,0.00029315,2]
[377494002,1754428269221,-606.24,0.00029589,2]
[377494003,1754428269230,-460.0,0.00029589,2]
[377494004,1754428269239,-153.0,0.00029961,2]
[377494005,1754428269247,-153.0,0.00029961,2]
[377494006,1754428269256,-153.0,0.00029961,2]
[377494007,1754428269264,-153.0,0.00029961,2]
[377494008,1754428269273,-1635.72,0.00030136,2]
[377494009,1754428269282,-12655.02535889,0.000304,7]
[377494010,1754428269291,-1635.72,0.0003041,2]
[377494011,1754428269300,-1635.72,0.00030684,2]
[377494012,1754428269309,-3013.7611691,0.00030958,2]
[377494013,1754428269318,-460.0,0.00030958,2]
[377494014,1754428269327,-771.54,0.00030958,2]
[377494015,1754428269336,-175.93159362,0.00030958,2]
[377494016,1754428269345,-1908.07805055,0.00030958,2]
[377494017,1754428269773,-460.0,0.00027397,2]
[377494018,1754428269794,-460.0,0.00027397,2]
[377494019,1754428269820,-460.0,0.00027397,2]
[377494020,1754428269843,-206.98,0.00027397,2]
[377494029,1754428271725,-264.74249465,0.00027397,2]
[377494030,1754428271750,-195.25750535,0.00027397,2]
[377494031,1754428297897,-460.0,0.0002479,2]
[377494032,1754428319703,-460.0,0.0002479,2]
[377494091,1754428349891,-460.0,0.00024078,2]
[377494094,1754428399129,-300.0,0.00024789,2]
[377494095,1754428399155,-160.0,0.0002479,2]
[377494096,1754428403448,-460.0,0.0002479,2]
[377494097,1754428407257,-460.0,0.0002479,2]
[377494098,1754428411596,-256.9191177,0.0002479,2]
[377494099,1754428413137,-1586.98,0.0002479,2]
[377494100,1754428417032,-460.0,0.0002479,2]
[377494101,1754428420503,-460.0,0.0002479,2]
[377494102,1754428422057,-460.0,0.0002479,2]
[377494103,1754428423598,-1993.53,0.0002479,2]
[377494104,1754428425232,-2017.23,0.0002479,2]
[377494105,1754428429603,-151.0,0.0002479,2]
[377494106,1754428431386,-182.54503737,0.00024046,2]
[377494107,1754428431409,-158.67241663,0.0002479,2]
[377494108,1754428434026,-158.67241663,0.0002479,2]
[377494109,1754428436214,-196.173257,0.0002479,2]
[377494110,1754428438467,-377.086994,0.0002479,2]
[377494111,1754428440467,-190.40899167,0.0002479,2]
[377494112,1754428442232,-151.0,0.0002479,2]
[377494113,1754428443898,-151.0,0.00024789,2]
[377494114,1754428446635,-149.0,0.00024789,2]
[377494115,1754428446658,-47.173257,0.0002479,2]
[377494116,1754428449871,-407.783881,0.0002479,2]
[377494138,1754428649282,186.8099666,0.00023924,2]
[377494139,1754428700195,260.644473,0.00023896,2]
[377494141,1754428876059,-199.52702242,0.00024046,2]
[377494142,1754428876081,-491.87297758,0.00024699,2]
[377494144,1754428918792,406.262727,0.00013699,2]
[377494145,1754428919128,406.262727,0.00020187,2]
[377494169,1754428963730,11485.98935766,0.0002378,2]
[377494170,1754428963755,13414.01064234,0.0002378,2]
[377494185,1754429240262,-160.0,0.00024698,2]
[377494186,1754429240291,-300.0,0.00024699,2]
[377494187,1754429240320,-757.73043202,0.000247,2]